bitfinex/quotes_ETHUSD_20240828
["timestamp","ask_amount","ask_price","bid_price","bid_amount"]
[1724830057163,12.21415342,2466.4,2465.8,5.62672484]
[1724830057670,12.21413342,2466.4,2465.8,5.62672484]
[1724830057878,8.15954342,2466.4,2465.8,5.62672484]
[1724830058276,12.21413342,2466.4,2465.8,5.62672484]
[1724830058644,8.15954342,2466.4,2465.8,5.62672484]
[1724830058843,10.62447342,2466.8,2466.2,4.0548]
[1724830059068,8.15913342,2466.6,2466.0,6.34261]
[1724830059264,4.05469,2466.3,2465.8,4.05537]
[1724830060388,4.05469,2466.3,2465.9,0.08109656]
[1724830060887,8.15955342,2466.4,2465.9,0.08109656]
[1724830061689,4.11602571,2466.3,2465.8,4.05537]
[1724830061911,4.05474,2466.3,2465.8,4.05537]
[1724830062188,8.15955342,2466.4,2465.8,9.491268]
[1724830062791,6.5195,2466.8,2466.1,2.3932]
[1724830062792,4.05403,2466.7,2466.1,2.3932]
[1724830062954,4.05417,2466.6,2466.2,0.08108805]
[1724830063155,4.10495342,2466.6,2466.2,0.08108805]
[1724830064893,8.15916342,2466.6,2466.2,0.08108805]
[1724830065594,4.10495342,2466.6,2466.2,0.08108805]
[1724830065896,4.10495342,2466.6,2466.2,4.13587805]
[1724830066765,0.4245331,2466.9,2466.2,1.13950086]
[1724830066977,2.4579,2467.1,2466.3,0.0810789]
[1724830066978,8.22007913,2466.8,2466.3,0.0810789]
[1724830067287,8.22007913,2466.8,2466.2,1.05841281]
[1724830067288,8.15911342,2466.6,2466.2,1.05841281]
[1724830067473,8.15911342,2466.6,2466.2,4.05841281]
[1724830067882,8.15911342,2466.6,2466.2,4.13949766]
[1724830068591,4.10495342,2466.6,2466.2,8.19428766]
[1724830068801,8.15879342,2466.8,2466.3,0.08108485]
[1724830069895,8.15879342,2466.8,2466.3,4.13568485]
[1724830070452,8.15879342,2466.8,2466.3,4.91619604]
[1724830072794,8.15879342,2466.8,2466.3,4.91513185]
[1724830073094,8.15879342,2466.8,2466.4,4.05449]
[1724830073699,8.15879342,2466.8,2466.3,0.86159425]
[1724830073862,8.15879342,2466.8,2466.2,11.10948]
[1724830074057,8.15879342,2466.8,2466.2,11.10941]
[1724830074502,12.21273342,2466.8,2466.2,7.05469]
[1724830074863,12.21273342,2466.8,2466.2,11.19050504]
[1724830074864,8.15879342,2466.8,2466.2,11.19050504]
[1724830075304,0.0623499,2466.7,2466.2,7.13577504]
[1724830075604,0.0623499,2466.7,2466.2,7.05469]
[1724830076315,9.40461276,2466.8,2466.3,4.05462]
[1724830076477,8.15879342,2466.8,2466.3,4.05462]
[1724830076679,8.15879342,2466.8,2466.3,4.13570504]
[1724830077513,12.21278342,2466.8,2466.3,5.4129795]
[1724830077685,12.21278342,2466.8,2466.2,7.05469]
[1724830078016,4.05402,2466.7,2466.2,7.13577509]
[1724830078511,4.1163699,2466.7,2466.2,7.05469]
[1724830078838,4.05402,2466.7,2466.2,7.13577513]
[1724830080012,2.4161,2466.5,2466.2,7.13577513]
[1724830080222,4.05526,2466.0,2465.4,2.3699]
[1724830080371,4.10495342,2465.9,2465.4,6.42603]
[1724830080774,4.05559,2465.8,2465.4,2.3699]
[1724830081320,4.05556,2465.8,2465.4,2.3699]
[1724830081881,4.10495342,2465.9,2465.5,0.0811112]
[1724830082101,8.16030342,2465.9,2465.5,0.0811112]
[1724830082479,8.16030342,2465.9,2465.4,3.012505]
[1724830083920,4.05549,2465.8,2465.4,3.012505]
[1724830084503,4.05564,2465.7,2465.4,3.012505]
[1724830084704,4.05564,2465.7,2465.2,5.469]
[1724830085022,4.05564,2465.7,2465.3,0.55]
[1724830085220,4.05564,2465.7,2465.4,0.08111394]
[1724830085819,4.05549,2465.8,2465.4,0.08111394]
[1724830086023,4.05549,2465.8,2465.4,4.09675233]
[1724830088485,4.05524,2466.0,2465.4,8.15287233]
[1724830089899,10.57614342,2466.1,2465.5,4.60588]
[1724830090114,4.10495342,2466.3,2465.7,6.41084]
[1724830090313,0.0623499,2466.2,2465.7,2.3552]
[1724830090520,4.10495342,2466.1,2465.6,3.0]
[1724830090928,4.05515,2466.0,2465.6,3.0]
[1724830091204,4.05515,2466.0,2465.6,4.86069582]
[1724830092309,4.05515,2466.0,2465.6,3.0]
[1724830092310,4.05543,2465.9,2465.6,3.0]
[1724830092509,4.05549,2465.8,2465.4,9.7252]
[1724830093213,4.05549,2465.8,2465.4,12.645339]
[1724830094117,4.05519,2466.0,2465.5,0.08111057]
[1724830094319,4.1175399,2466.0,2465.5,4.13705057]
[1724830094516,4.0546,2466.4,2465.6,2.22823896]
[1724830094724,4.1169499,2466.4,2465.7,4.13657549]
[1724830094905,8.15962342,2466.3,2465.8,1.26757686]
[1724830095715,2.3068,2466.5,2465.8,0.55]
[1724830095716,8.15996342,2466.1,2465.8,0.55]
[1724830095917,4.10495342,2466.1,2465.7,0.55]
[1724830096153,4.10495342,2466.1,2465.7,3.55]
[1724830096508,4.05485,2466.2,2465.7,8.9396079]
[1724830096910,4.05485,2466.2,2465.4,13.052039]
[1724830096911,8.16027342,2465.9,2465.4,17.108159]
[1724830097132,4.10495342,2465.7,2465.4,7.7767]
[1724830097623,4.05532,2465.9,2465.4,7.7767]
[1724830097624,12.21573342,2465.9,2465.4,7.7767]
[1724830097963,12.21569342,2465.9,2465.4,10.202004]
[1724830098259,8.16027342,2465.9,2465.5,0.08111131]
[1724830098468,4.05532,2465.9,2465.5,0.08111131]
[1724830099473,4.05532,2465.9,2465.4,14.1903]
[1724830099620,8.16027342,2465.9,2465.4,10.1342]
[1724830100034,4.05509,2466.1,2465.5,0.08111139]
[1724830100035,4.10495342,2466.1,2465.5,0.08111139]
[1724830100257,4.10495342,2466.1,2465.6,4.60566]
[1724830100258,4.05499,2466.1,2465.6,4.60566]
[1724830101263,8.15994342,2466.1,2465.6,4.60566]
[1724830101664,12.21506342,2466.1,2465.6,0.55]
[1724830101826,12.21506342,2466.1,2465.5,4.60592]
[1724830101827,8.15994342,2466.1,2465.5,4.60592]
[1724830102164,8.15994342,2466.1,2465.5,6.7922033]
[1724830102661,12.21502342,2466.1,2465.5,6.7922033]
[1724830102821,8.15994342,2466.1,2465.5,6.7922033]
[1724830103526,4.05499,2466.1,2465.6,4.13680426]
[1724830103734,8.15994342,2466.1,2465.5,4.60587]
[1724830103936,8.15994342,2466.1,2465.6,0.08110429]
[1724830104971,4.05499,2466.1,2465.6,4.13682429]
[1724830105179,4.05499,2466.1,2465.6,6.33118202]
[1724830106169,12.21502342,2466.1,2465.6,2.27546202]
[1724830106375,8.15994342,2466.1,2465.6,0.08110429]
[1724830106657,12.21504342,2466.1,2465.6,0.08110429]
[1724830106858,8.16028342,2465.9,2465.4,10.1342]
[1724830107022,0.0623499,2465.8,2465.4,7.7767]
[1724830107226,8.11073,2465.9,2465.5,0.08111251]
[1724830107534,4.05569,2465.7,2465.4,7.7767]
[1724830108026,4.05569,2465.7,2465.3,0.4067]
[1724830108222,9.06454559,2465.7,2465.3,0.4067]
[1724830108840,13.12032559,2465.7,2465.3,0.4067]
[1724830109041,4.05581,2465.6,2465.3,0.4067]
[1724830109250,4.05581,2465.6,2465.1,4.05649]
[1724830109455,4.05581,2465.6,2465.2,0.55]
[1724830109842,4.05597,2465.5,2465.1,0.4067]
[1724830110029,4.05597,2465.5,2465.1,3.4067]
[1724830111827,0.0623499,2465.6,2465.1,3.48782236]
[1724830112070,0.0623499,2465.6,2465.1,7.54442236]
[1724830112228,12.21643342,2465.7,2465.1,7.54442236]
[1724830112440,4.05572,2465.7,2465.1,9.6895696]
[1724830112851,4.05572,2465.7,2465.3,2.4387]
[1724830113454,8.16067342,2465.7,2465.3,2.4387]
[1724830113854,4.05572,2465.7,2465.3,2.4387]
[1724830115442,0.0623499,2465.8,2465.3,2.4387]
[1724830115639,4.10495342,2465.9,2465.3,2.51982008]
[1724830115845,4.10495342,2465.7,2465.3,2.4387]
[1724830116068,4.16730332,2465.7,2465.3,2.4387]
[1724830117842,0.0623499,2465.7,2465.3,2.4387]
[1724830118049,4.1179199,2465.8,2465.3,2.4387]
[1724830118250,0.0623499,2465.8,2465.3,2.51981809]
[1724830118455,8.16037342,2465.9,2465.3,2.51981809]
[1724830118664,8.16037342,2465.9,2465.4,4.05612]
[1724830118864,8.16037342,2465.9,2465.4,4.05604]
[1724830119958,8.15994342,2466.1,2465.5,4.68692629]
[1724830120500,8.15970342,2466.3,2465.6,4.05577]
[1724830120669,8.15970342,2466.3,2465.8,6.49637]
[1724830121267,4.10495342,2466.1,2465.7,0.08110214]
[1724830121474,4.10495342,2466.1,2465.6,6.49662]
[1724830121656,4.10495342,2466.1,2465.7,0.55]
[1724830121970,4.10495342,2466.1,2465.7,0.63110216]
[1724830122350,8.15994342,2466.1,2465.7,0.55]
[1724830123993,8.15994342,2466.1,2465.7,0.63110236]
[1724830124489,8.15994342,2466.1,2465.7,0.55]
[1724830125563,4.10495342,2466.1,2465.7,4.68673232]
[1724830126305,4.10495342,2466.1,2465.7,0.63110232]
[1724830127692,8.15994342,2466.1,2465.7,0.55]
[1724830128168,4.10495342,2466.1,2465.7,4.68672253]
[1724830128373,4.10495342,2466.1,2465.7,0.63110253]
[1724830128576,5.33264975,2466.1,2465.7,0.55]
[1724830129006,4.10495342,2466.1,2465.7,0.55]
[1724830129312,4.10495342,2466.1,2465.7,4.60561]
[1724830130574,4.10495342,2466.1,2465.7,4.6867125]
[1724830133373,4.10495342,2466.1,2465.7,4.60561]
[1724830134105,1.70937738,2465.9,2465.7,4.60561]
[1724830134271,1.70937738,2465.9,2465.7,4.68671386]
[1724830136616,1.70937738,2465.9,2465.7,4.68671386]
[1724830137680,1.70937738,2465.9,2465.8,4.05547]
[1724830144195,1.70937738,2465.9,2465.7,4.60563]
[1724830144407,1.70937738,2465.9,2465.7,4.68673245]
[1724830144601,1.70937738,2465.9,2465.6,4.05578]
[1724830144810,1.70937738,2465.7,2465.4,4.46271]
[1724830145122,1.70937738,2465.7,2465.5,4.60587]
[1724830146138,1.70937738,2465.7,2465.5,0.55]
[1724830146294,1.70937738,2465.7,2465.5,4.60595]
[1724830147187,1.70937738,2465.9,2465.5,4.68705794]
[1724830148221,1.70937738,2465.9,2465.5,4.60595]
[1724830148391,2.52274112,2465.9,2465.5,0.55]
[1724830148590,6.64052102,2465.9,2465.5,0.55]
[1724830149680,6.57817112,2465.9,2465.5,0.55]
[1724830152618,5.76480738,2465.9,2465.5,0.55]
[1724830153091,6.42426,2466.0,2465.5,4.60592]
[1724830153297,6.42425,2466.0,2465.5,4.68702907]
[1724830153689,10.47952,2466.0,2465.5,4.68702907]
[1724830153888,6.42425,2466.0,2465.5,4.68702907]
[1724830154337,10.47949,2466.0,2465.5,4.68702907]
[1724830154614,6.42424,2466.0,2465.5,4.68702907]
[1724830155120,4.14524,2466.0,2465.5,4.68702907]
[1724830157193,8.20047,2466.0,2465.5,4.68702907]
[1724830157393,5.14244973,2466.0,2465.5,4.68702907]
[1724830157905,5.14244973,2466.0,2465.5,0.63110907]
[1724830158111,5.14244973,2466.0,2465.5,4.60597]
[1724830158493,5.14244973,2466.0,2465.5,4.68707918]
[1724830159245,4.05531,2465.9,2465.5,0.63110918]
[1724830160592,9.19773973,2466.0,2465.5,0.63110918]
[1724830161029,9.19768973,2466.0,2465.5,4.68706918]
[1724830161202,5.14244973,2466.0,2465.5,4.68706918]
[1724830162120,4.14523,2466.0,2465.5,4.68706918]
[1724830162497,0.09,2466.0,2465.7,4.05561]
[1724830162836,0.09,2466.0,2465.6,6.50477]
[1724830163128,0.09,2466.0,2465.7,0.08110397]
[1724830163892,0.09,2466.0,2465.7,4.13673397]
[1724830164088,0.09,2466.0,2465.8,4.05544]
[1724830164391,0.09,2466.0,2465.8,0.08110102]
[1724830164602,0.09,2466.0,2465.7,4.05563]
[1724830164798,0.09,2466.0,2465.6,2.4491]
[1724830165001,5.76469738,2465.9,2465.5,4.60585]
[1724830165203,5.76469738,2465.9,2465.5,0.55]
[1724830167290,4.05532,2465.9,2465.5,4.68706865]
[1724830169441,8.11078,2465.9,2465.5,0.55]
[1724830169730,4.0559,2465.6,2465.3,7.37]
[1724830169937,4.1182499,2465.6,2465.0,10.37]
[1724830170137,4.05622,2465.4,2465.0,7.37]
[1724830170348,4.05657,2465.2,2464.7,4.89928097]
[1724830170558,4.0571,2464.9,2464.6,3.32552097]
[1724830170838,4.05744,2464.7,2464.2,0.84202097]
[1724830171017,4.05744,2464.7,2464.3,0.6354741]
[1724830171018,1.70937738,2464.5,2464.3,0.6354741]
[1724830171331,5.76681738,2464.7,2464.2,0.4067]
[1724830171533,5.82916728,2464.7,2464.2,0.4067]
[1724830171736,4.1197899,2464.7,2464.2,0.4067]
[1724830172257,5.82916728,2464.7,2464.2,0.4067]
[1724830173033,4.05745,2464.6,2464.2,0.4067]
[1724830174521,4.05745,2464.6,2464.2,1.387013]
[1724830176335,1.77172728,2464.7,2464.2,5.445113]
[1724830176563,0.0623499,2464.7,2464.2,5.445113]
[1724830176953,4.1196599,2464.7,2464.2,5.445113]
[1724830177270,0.0623499,2464.7,2464.2,5.445113]
[1724830178069,0.0623499,2464.7,2464.3,0.64088646]
[1724830178790,4.05687,2465.0,2464.4,6.40547174]
[1724830178930,5.76624738,2465.0,2464.4,6.40547174]
[1724830179130,0.0623499,2464.9,2464.4,6.40547174]
[1724830179771,4.1193299,2464.9,2464.4,6.40547174]
[1724830179934,4.1193299,2464.9,2464.4,7.65460886]
[1724830180126,0.0623499,2464.9,2464.4,7.65460886]
[1724830182573,0.0623499,2464.9,2464.4,11.71229886]
[1724830183086,0.0623499,2464.9,2464.4,7.65460886]
[1724830184238,0.0623499,2464.9,2464.4,11.71229886]
[1724830184442,0.0623499,2464.9,2464.4,11.71228886]
[1724830185067,0.0623499,2464.9,2464.4,7.65460886]
[1724830185678,0.0623499,2464.9,2464.4,11.71229886]
[1724830186575,1.77172728,2465.0,2464.7,4.05728]
[1724830186790,1.70937738,2465.0,2464.7,4.05728]
[1724830188899,1.70937738,2465.0,2464.5,9.35028853]
[1724830189083,1.70937738,2465.0,2464.5,5.29276853]
[1724830189291,1.70937738,2465.0,2464.5,5.37391275]
[1724830189479,9.82304738,2465.0,2464.5,4.05745]
[1724830189688,9.82306738,2465.0,2464.5,4.05745]
[1724830189865,4.03487738,2464.8,2464.3,4.05783]
[1724830190071,0.0623499,2464.7,2464.3,4.05783]
[1724830190387,4.1196499,2464.7,2464.2,11.83478]
[1724830190716,4.1196499,2464.7,2464.2,4.46478]
[1724830190877,4.1196499,2464.7,2464.3,4.05794]
[1724830191061,0.0623499,2464.7,2464.3,4.05794]
[1724830192393,1.70937738,2464.8,2464.3,8.11588]
[1724830192601,1.77172728,2464.8,2464.3,8.11588]
[1724830192769,1.70937738,2464.8,2464.3,9.80041447]
[1724830192965,1.70937738,2464.8,2464.5,4.05757]
[1724830193385,8.08401738,2465.0,2464.5,4.05757]
[1724830195094,4.02717738,2465.0,2464.5,8.11514]
[1724830195296,4.08952728,2465.0,2464.5,8.11514]
[1724830196166,4.08952728,2465.0,2464.6,4.05742]
[1724830197371,2.3801499,2465.0,2464.6,4.05742]
[1724830198564,2.3801499,2465.0,2464.5,4.05757]
[1724830198768,9.36663401,2465.0,2464.5,4.05757]
[1724830199697,4.05696,2464.9,2464.3,4.05782]
[1724830199860,5.82884728,2464.8,2464.3,4.05782]
[1724830200195,4.05737,2464.7,2464.2,4.46469]
[1724830200362,0.0623499,2464.6,2464.2,4.46469]
[1724830200564,2.3233499,2464.6,2464.2,4.46469]
[1724830201575,0.0623499,2464.6,2464.3,4.05794]
[1724830202089,4.1197199,2464.7,2464.3,4.05794]
[1724830203113,4.1197199,2464.7,2464.2,0.4067]
[1724830203408,5.33855663,2464.7,2464.2,0.4067]
[1724830203798,5.33855663,2464.7,2464.2,4.46479]
[1724830203971,4.1197199,2464.7,2464.2,4.46479]
[1724830204569,4.1197199,2464.7,2464.3,4.05792]
[1724830206393,0.0623499,2464.7,2464.3,4.05785]
[1724830208072,4.1196499,2464.7,2464.2,0.4067]
[1724830208366,4.1196499,2464.7,2464.2,4.46476]
[1724830209204,8.1770399,2464.7,2464.2,4.46476]
[1724830209585,8.1770199,2464.7,2464.2,4.46476]
[1724830209784,4.1196499,2464.7,2464.2,4.46476]
[1724830209986,8.1770599,2464.7,2464.2,0.4067]
[1724830210181,4.1196499,2464.7,2464.2,0.4067]
[1724830210405,9.39589863,2464.7,2464.2,0.4067]
[1724830210725,5.33847863,2464.7,2464.2,0.4067]
[1724830211220,9.39585863,2464.7,2464.2,0.4067]
[1724830212185,4.05746,2464.6,2464.2,0.4067]
[1724830212404,4.1198099,2464.6,2464.2,0.4067]
[1724830214216,4.0573,2464.7,2464.2,4.46479]
[1724830214401,4.1196499,2464.7,2464.2,5.211271]
[1724830214602,4.05664,2465.1,2464.2,5.211271]
[1724830214603,2.3355,2465.1,2464.5,1.70937738]
[1724830214808,2.3355,2465.4,2464.9,4.05695]
[1724830214983,2.3355,2465.4,2464.9,9.82318738]
[1724830215179,2.3355,2465.4,2465.0,4.05678]
[1724830215480,2.3355,2465.4,2465.0,4.13790918]
[1724830216125,5.76585738,2465.2,2464.7,4.05716]
[1724830216303,1.70937738,2464.8,2464.5,3.0]
[1724830216511,2.4502,2464.6,2464.2,3.4068]
[1724830216707,8.21708738,2464.6,2464.2,0.4068]
[1724830216920,0.0623499,2464.5,2464.2,0.4068]
[1724830217084,0.0623499,2464.5,2464.3,0.03654797]
[1724830217419,0.0623499,2464.5,2464.2,0.4068]
[1724830217585,4.1199699,2464.5,2464.4,0.03568651]
[1724830217781,4.1199699,2464.5,2464.1,0.4068]
[1724830217782,5.35375563,2464.5,2464.1,0.4068]
[1724830217986,2.2781,2464.2,2463.8,0.4068]
[1724830218292,4.05836,2464.1,2463.8,0.4068]
[1724830218800,0.0623499,2464.0,2463.7,0.4068]
[1724830219014,8.11675,2464.1,2463.7,0.4068]
[1724830219015,4.05836,2464.1,2463.7,0.4068]
[1724830219184,4.1207099,2464.1,2463.7,0.4068]
[1724830221285,2.3404499,2464.2,2463.7,0.4068]
[1724830221486,2.29,2464.4,2463.7,1.59256716]
[1724830221703,0.0623499,2464.6,2463.8,0.08116579]
[1724830222025,6.4099299,2464.6,2464.0,4.05832]
[1724830222229,6.4099299,2464.6,2464.0,4.13947862]
[1724830222412,7.45666489,2464.6,2464.0,4.13947862]
[1724830222599,4.05765,2464.5,2464.0,0.08115862]
[1724830222802,4.05798,2464.3,2463.7,4.46564]
[1724830223014,4.1204599,2464.2,2463.8,3.6355452]
[1724830223216,4.0583,2464.1,2463.8,3.0]
[1724830223436,4.0583,2464.1,2463.7,0.4068]
[1724830225738,0.0623499,2464.0,2463.5,0.4068]
[1724830226532,4.05878,2463.8,2463.4,3.38134831]
[1724830226903,4.1207899,2464.0,2463.4,3.38134831]
[1724830227349,4.05862,2463.9,2463.4,3.38134831]
[1724830227626,0.0623499,2463.9,2463.4,7.84414283]
[1724830228019,4.1209499,2463.9,2463.4,3.78476283]
[1724830228795,4.05878,2463.8,2463.4,3.0]
[1724830229031,0.0623499,2463.7,2463.4,3.0]
[1724830229336,4.1211299,2463.8,2463.4,3.0]
[1724830229496,0.0623499,2463.7,2463.4,3.81019864]
[1724830229935,0.0623499,2463.7,2463.4,3.0]
[1724830230104,2.5073499,2463.7,2463.4,3.0]
[1724830232330,0.0623499,2463.7,2463.3,6.58358]
[1724830232530,0.0623499,2463.7,2463.4,0.03610899]
[1724830232739,2.2756,2463.9,2463.4,0.11729034]
[1724830232896,4.1208999,2464.0,2463.4,4.17663034]
[1724830233099,4.1208999,2464.0,2463.5,1.07602103]
[1724830233403,4.1208999,2464.0,2463.6,0.03722896]
[1724830234328,4.0586,2463.9,2463.6,0.03722896]
[1724830234634,4.1209499,2463.9,2463.4,4.0594]
[1724830234834,4.1209499,2463.9,2463.7,0.03717971]
[1724830235128,4.1209499,2463.9,2463.4,5.349743]
[1724830235334,4.1209499,2463.9,2463.8,0.03717971]
[1724830235508,2.2778,2463.7,2463.4,3.0]
[1724830235697,2.2778,2463.7,2463.3,0.4068]
[1724830235698,2.3401499,2463.7,2463.3,0.4068]
[1724830235896,2.3401499,2463.7,2463.3,3.4068]
[1724830236998,6.3991899,2463.7,2463.3,3.4068]
[1724830237198,6.3991899,2463.7,2463.3,0.4068]
[1724830239705,2.3401499,2463.7,2463.3,0.4068]
[1724830239912,2.3401499,2463.7,2463.3,2.542985]
[1724830240200,6.3991099,2463.7,2463.3,2.542985]
[1724830241020,2.3401499,2463.7,2463.3,6.602565]
[1724830241221,2.3401499,2463.7,2463.3,6.602485]
[1724830241423,0.0623499,2463.7,2463.4,4.05942]
[1724830241660,2.5060499,2463.9,2463.5,4.05919]
[1724830241851,2.5060499,2464.1,2463.7,4.05884]
[1724830242038,6.5643199,2464.1,2463.6,0.94848005]
[1724830242232,4.0587,2463.9,2463.3,0.4068]
[1724830242461,0.0623499,2463.8,2463.3,4.46626]
[1724830242630,4.1211999,2463.8,2463.4,0.03729052]
[1724830242824,2.5060499,2463.7,2463.4,0.03729052]
[1724830243458,6.5650299,2463.7,2463.4,0.03729052]
[1724830244956,2.5060499,2463.7,2463.4,0.03729052]
[1724830245254,2.5060499,2463.7,2463.4,0.78765757]
[1724830245555,6.5649999,2463.7,2463.4,0.03729052]
[1724830246150,2.5060499,2463.7,2463.4,0.03729052]
[1724830247018,4.0591,2463.6,2463.4,0.03729052]
[1724830247223,0.0623499,2463.5,2463.4,0.03729052]
[1724830247452,0.0623499,2463.6,2463.4,0.03729052]
[1724830248329,4.05889,2463.8,2463.4,0.78766557]
[1724830248534,4.1212399,2463.8,2463.4,0.78766557]
[1724830248770,0.0623499,2463.7,2463.4,0.78766557]
[1724830248947,0.0623499,2463.7,2463.4,0.03729052]
[1724830249148,6.48429,2463.6,2463.4,0.03729052]
[1724830249343,0.0623499,2463.5,2463.2,3.4068]
[1724830249655,4.1216099,2463.5,2463.3,0.03745058]
[1724830250042,4.1216099,2463.5,2463.2,3.4068]
[1724830250228,4.1216099,2463.5,2463.4,0.03745058]
[1724830250433,4.05943,2463.4,2463.1,7.37]
[1724830250653,6.46595,2463.2,2463.1,7.37]
[1724830250854,10.52579,2463.2,2462.7,7.37]
[1724830251068,0.0623499,2463.1,2462.7,7.7768]
[1724830251268,4.1223699,2463.1,2462.7,7.7768]
[1724830252143,4.0601,2463.0,2462.7,7.7768]
[1724830252333,2.4718,2462.8,2462.3,0.4068]
[1724830252538,4.06075,2462.6,2462.3,0.4068]
[1724830252736,0.0623499,2462.5,2462.3,0.4068]
[1724830253579,0.0623499,2462.5,2462.0,4.0616]
[1724830253782,0.0623499,2462.5,2461.8,6.42064]
[1724830253935,6.58024894,2462.8,2461.8,6.42064]
[1724830253936,4.06116,2462.4,2461.8,6.42064]
[1724830254138,0.0623499,2462.3,2461.8,6.42064]
[1724830254449,0.0623499,2462.3,2461.9,0.4068]
[1724830254838,0.0623499,2462.3,2461.9,3.4068]
[1724830255552,2.3233499,2462.3,2461.9,3.4068]
[1724830257460,2.3233499,2462.3,2462.0,0.03955758]
[1724830258333,0.0623499,2462.3,2462.0,0.03955758]
[1724830258538,2.3519,2462.7,2462.1,0.4068]
[1724830258733,4.1230999,2462.6,2462.1,1.54372775]
[1724830258964,4.1230999,2462.6,2462.1,0.4068]
[1724830259366,4.1230999,2462.6,2462.2,0.03955758]
[1724830260066,4.06092,2462.5,2462.2,0.03955758]
[1724830260249,0.0623499,2462.4,2462.2,0.03955758]
[1724830260452,6.41208,2463.0,2462.4,4.06091]
[1724830260638,0.0623499,2462.9,2462.4,4.06091]
[1724830261136,4.1225999,2462.9,2462.5,0.03955758]
[1724830261554,4.06042,2462.8,2462.5,0.03955758]
[1724830261758,0.0623499,2462.9,2462.5,0.03955758]
[1724830261942,0.0623499,2462.9,2462.5,5.00830176]
[1724830262143,14.58010894,2463.2,2462.6,0.03955758]
[1724830262144,0.0623499,2463.1,2462.6,0.03955758]
[1724830262332,0.0623499,2463.1,2462.6,4.10026758]
[1724830262563,0.0623499,2463.1,2462.6,4.60497351]
[1724830262935,0.0623499,2463.3,2462.7,2.4060092]
[1724830263137,0.0623499,2463.3,2462.9,4.06015]
[1724830263348,0.0623499,2463.3,2462.9,5.11279192]
[1724830263549,0.0623499,2463.3,2463.0,0.03955758]
[1724830264170,0.0623499,2463.4,2463.0,4.05999]
[1724830264369,2.4958,2463.6,2463.1,0.03955758]
[1724830264678,0.0623499,2463.5,2463.1,0.03955758]
[1724830264837,0.0623499,2463.5,2463.1,4.09946758]
[1724830265268,0.0623499,2463.5,2463.1,0.03955758]
[1724830265989,2.391045,2463.6,2463.1,4.09940758]
[1724830266170,2.4533949,2463.6,2463.1,4.09940758]
[1724830266352,6.5125149,2463.6,2463.1,0.03955758]
[1724830266881,14.68020384,2463.6,2463.1,0.03955758]
[1724830267066,16.14822422,2463.6,2463.1,0.03955758]
[1724830267270,12.08898422,2463.6,2463.1,0.03955758]
[1724830267443,16.14817422,2463.6,2463.1,0.03955758]
[1724830267788,12.08898422,2463.6,2463.1,0.03955758]
[1724830267988,10.62096384,2463.6,2463.1,0.03955758]
[1724830269084,14.68019384,2463.6,2463.1,0.03955758]
[1724830269473,10.62096384,2463.6,2463.1,0.03955758]
[1724830269878,10.5717149,2463.6,2463.1,0.03955758]
[1724830270496,6.5125149,2463.6,2463.1,0.03955758]
[1724830270656,6.5125149,2463.6,2463.1,4.92352862]
[1724830270856,6.5125149,2463.6,2463.1,0.86362862]
[1724830271082,4.05936,2463.5,2463.1,0.03955758]
[1724830271258,0.0623499,2463.4,2463.1,0.03955758]
[1724830271452,4.10844894,2463.8,2463.2,2.2712]
[1724830271453,4.05884,2463.8,2463.2,2.2712]
[1724830271712,0.0623499,2463.9,2463.4,4.0594]
[1724830271992,0.0623499,2463.9,2463.4,4.05932]
[1724830272200,4.1210399,2463.9,2463.5,0.03897772]
[1724830272382,0.0623499,2463.9,2463.5,0.03897772]
[1724830273596,4.05821,2464.2,2463.7,2.448]
[1724830273758,0.42500775,2464.3,2463.8,0.08117743]
[1724830273958,0.0623499,2464.6,2464.0,4.05833]
[1724830274259,4.48197644,2464.9,2464.3,4.05782]
[1724830274452,0.0623499,2464.8,2464.2,4.05796]
[1724830274678,4.0573,2464.7,2464.1,2.448]
[1724830274885,4.05776,2464.5,2464.3,0.03854663]
[1724830275080,0.0623499,2464.4,2463.9,3.0]
[1724830276298,4.05736,2464.7,2463.9,3.0]
[1724830276299,4.05696,2464.9,2464.0,0.08116626]
[1724830276496,0.0623499,2464.8,2464.1,0.55]
[1724830276716,0.0623499,2464.8,2464.3,4.05789]
[1724830276859,0.0623499,2464.8,2464.3,4.13907529]
[1724830277063,0.0623499,2464.8,2464.3,4.05792]
[1724830277258,0.0623499,2464.8,2464.2,6.34869]
[1724830277259,0.0623499,2464.8,2464.2,6.34861]
[1724830277491,0.0623499,2464.8,2464.2,7.038479]
[1724830277689,4.53335378,2465.2,2464.3,0.63115273]
[1724830277896,0.0623499,2465.1,2464.4,4.41881217]
[1724830278202,4.05706,2464.9,2464.3,4.60783]
[1724830278371,4.1189899,2465.1,2464.4,4.05775]
[1724830278559,4.1189899,2465.1,2464.4,5.23049494]
[1724830278756,0.0623499,2465.1,2464.5,0.08115035]
[1724830278955,4.10844894,2465.5,2464.8,4.05709]
[1724830278956,0.0623499,2465.2,2464.8,4.05709]
[1724830279196,4.1185199,2465.4,2464.9,0.405709]
[1724830279372,4.1185199,2465.4,2464.8,4.05709]
[1724830279801,4.05572,2465.7,2464.9,0.08113492]
[1724830280007,4.05572,2465.7,2465.0,6.38555]
[1724830280008,4.1180699,2465.7,2465.0,6.38555]
[1724830280172,4.05607,2465.5,2464.8,4.05703]
[1724830280369,0.56370327,2465.4,2464.9,3.55]
[1724830280594,0.0623499,2465.4,2464.9,3.55]
[1724830280808,0.0623499,2465.4,2464.9,4.6441907]
[1724830281155,0.0623499,2465.4,2464.9,3.55]
[1724830281356,0.0623499,2465.4,2464.6,11.83415]
[1724830281357,8.16483894,2465.3,2464.6,11.83415]
[1724830281602,0.0623499,2465.2,2464.7,7.60716]
[1724830281762,4.1187399,2465.3,2464.7,3.55]
[1724830282096,4.1187399,2465.3,2464.7,7.68829511]
[1724830282302,0.0623499,2465.2,2464.7,3.55]
[1724830282596,4.10844894,2465.0,2464.3,7.37]
[1724830282801,4.77998479,2464.9,2464.4,3.0]
[1724830282963,4.1193199,2464.9,2464.2,2.3904]
[1724830283165,4.0573,2464.7,2464.2,0.4068]
[1724830283397,0.0623499,2464.6,2464.1,4.05826]
[1724830283692,4.1199099,2464.6,2464.0,6.44871]
[1724830283905,4.10844894,2464.4,2463.8,0.4068]
[1724830284066,4.10844894,2464.2,2463.4,8.11862]
[1724830284262,0.0623499,2464.1,2463.5,2.3904]